bitfinex/quotes_ETHUSD_20250715
["timestamp","ask_amount","ask_price","bid_price","bid_amount"]
[1752581838271,3.35353199,2982.0,2980.4,0.001]
[1752581838471,10.0,2981.8,2981.2,3.35428355]
[1752581838770,9.71878064,2982.8,2981.3,0.03354241]
[1752581838974,10.0,2982.1,2981.7,3.35374755]
[1752581839171,10.0,2981.9,2981.8,3.35356962]
[1752581839378,9.71878064,2982.8,2981.9,3.35356037]
[1752581839549,0.8078,2982.7,2981.4,5.189]
[1752581839744,0.8078,2982.7,2982.2,3.3532151]
[1752581839745,5.189,2982.6,2982.2,3.3532151]
[1752581840135,0.8078,2982.7,2982.5,3.35289186]
[1752581840334,5.189,2982.6,2981.8,0.03353678]
[1752581840535,10.0,2982.6,2982.5,3.35289186]
[1752581840758,15.189,2982.6,2982.5,3.35289186]
[1752581841992,1.3148,2983.1,2982.8,3.35247522]
[1752581842192,10.0,2982.9,2982.8,3.35247522]
[1752581843136,10.0,2982.9,2981.7,0.7528]
[1752581843137,10.0,2982.6,2981.7,0.7528]
[1752581843403,19.71878064,2982.3,2981.8,3.35365471]
[1752581843626,5.201,2982.2,2981.9,3.35355874]
[1752581843758,5.201,2982.2,2981.8,3.35362816]
[1752581844153,10.0,2982.1,2981.8,3.35362816]
[1752581844366,5.2,2982.0,2981.8,3.35362816]
[1752581845796,5.2,2982.0,2981.7,3.35375324]
[1752581845986,5.2,2982.0,2981.6,3.35390394]
[1752581846182,5.2,2982.0,2981.5,0.7528]
[1752581846356,5.2,2982.0,2981.7,3.35377316]
[1752581846970,5.2,2982.0,2981.6,3.35386394]
[1752581847415,5.2,2982.0,2981.4,3.3541026]
[1752581847590,0.8098,2981.9,2981.4,3.35405869]
[1752581847791,5.196,2981.8,2981.5,3.35398989]
[1752581847990,5.196,2981.8,2981.5,3.52118989]
[1752581848793,5.196,2981.8,2981.6,3.35389424]
[1752581849924,5.196,2981.8,2981.5,0.1672]
[1752581850064,10.0,2982.2,2981.9,3.35356651]
[1752581850265,10.0,2982.0,2981.9,3.35356651]
[1752581850577,10.0,2982.0,2981.8,3.35363712]
[1752581850796,5.193,2981.9,2981.8,3.35363712]
[1752581855721,1.20549046,2982.2,2981.8,3.35363712]
[1752581855722,0.1672,2982.2,2982.1,3.3533416]
[1752581855921,15.3562,2982.2,2982.1,3.3533416]
[1752581856507,0.1672,2982.2,2982.1,3.3533416]
[1752581856691,0.1672,2982.8,2982.7,3.35259504]
[1752581856896,5.3552,2982.8,2982.7,3.35259504]
[1752581857096,15.3552,2982.8,2982.7,3.35259504]
[1752581857497,5.3552,2982.8,2982.7,3.35259504]
[1752581857711,0.8272,2983.4,2983.1,3.35216089]
[1752581857926,0.1672,2983.2,2983.1,3.35216089]
[1752581858201,10.1672,2983.2,2983.1,3.35216089]
[1752581858421,10.1672,2983.2,2982.7,0.1672]
[1752581858621,15.189,2983.1,2983.0,3.35227401]
[1752581859013,15.191,2983.1,2983.0,3.35227401]
[1752581860534,10.0,2983.0,2982.8,3.35249858]
[1752581860727,10.0,2983.0,2982.7,0.1672]
[1752581860728,10.0,2982.8,2982.7,3.35258085]
[1752581861036,10.7817,2982.8,2982.6,3.35271574]
[1752581861246,15.186,2982.7,2982.6,3.35271574]
[1752581861619,15.186,2982.7,2982.5,3.52003887]
[1752581862231,15.186,2982.7,2982.6,3.35277945]
[1752581864100,15.186,2982.7,2982.2,3.35319553]
[1752581864101,45.68797046,2982.7,2982.2,3.35318025]
[1752581864308,30.0,2982.6,2982.4,3.35294595]
[1752581864621,5.183,2982.5,2982.4,3.35294595]
[1752581864842,5.183,2982.5,2981.8,5.183]
[1752581864843,14.90178064,2982.5,2982.0,3.35338049]
[1752581865003,16.60480064,2982.5,2982.2,3.35317503]
[1752581866208,16.60480064,2982.5,2982.3,3.35302526]
[1752581866449,16.60480064,2982.5,2982.3,3.35311672]
[1752581866644,16.60480064,2982.5,2982.4,3.35300429]
[1752581866846,16.60480064,2982.5,2982.3,3.35305956]
[1752581867017,0.50197046,2982.4,2982.3,3.35305956]
[1752581867744,0.50197046,2982.4,2982.2,3.35318513]
[1752581868067,5.18,2982.3,2982.2,3.35318513]
[1752581869603,10.0,2982.2,2982.1,3.35328254]
[1752581872244,10.0,2982.2,2981.8,0.1672]
[1752581872429,10.0,2982.0,2981.9,3.35350493]
[1752581873352,10.0,2982.0,2981.8,3.3536464]
[1752581873519,5.9992,2981.9,2981.7,3.35369842]
[1752581873707,5.175,2981.8,2981.7,3.35369842]
[1752581874116,5.3422,2981.8,2981.7,3.35369842]
[1752581874316,5.95884,2981.8,2981.6,3.35384916]
[1752581874518,5.95884,2981.8,2981.7,3.35379146]
[1752581874831,5.3422,2981.8,2981.7,3.35379146]
[1752581876469,5.3422,2981.8,2981.5,3.353987]
[1752581876771,5.3422,2981.8,2981.7,3.35379146]
[1752581876945,5.3422,2981.8,2981.6,3.35386241]
[1752581877315,0.8001,2982.1,2982.0,3.35345405]
[1752581877514,0.1672,2982.2,2982.1,3.3533416]
[1752581877752,5.3392,2982.2,2982.1,3.3533416]
[1752581877947,15.3392,2982.2,2982.1,3.3533416]
[1752581878953,10.0,2982.1,2982.0,3.35340762]
[1752581879161,5.3392,2982.2,2982.0,3.35340762]
[1752581879332,5.3392,2982.2,2981.8,3.35363773]
[1752581879333,5.3392,2982.2,2981.9,3.35350866]
[1752581879517,5.3392,2982.2,2982.0,3.35344686]
[1752581880048,5.3392,2982.2,2981.8,3.35363773]
[1752581880437,5.3392,2982.2,2982.0,3.35339872]
[1752581880676,5.3392,2982.2,2982.1,3.3533416]
[1752581880856,0.1672,2982.2,2982.1,3.3533416]
[1752581881175,5.3362,2982.2,2982.0,3.35340136]
[1752581883056,10.0,2982.1,2981.9,3.35351289]
[1752581883257,15.167,2982.0,2981.9,3.35351289]
[1752581883986,10.0,2981.9,2981.7,3.35376789]
[1752581884288,10.0,2981.7,2981.3,0.1682]
[1752581884456,6.1065,2981.8,2981.3,0.1682]
[1752581884457,11.65249277,2981.6,2981.3,3.3551674]
[1752581884657,5.168,2981.5,2981.3,0.001]
[1752581884874,5.168,2981.5,2981.3,3.35521966]
[1752581885386,10.0,2981.4,2981.3,0.001]
[1752581885880,10.0,2981.4,2981.3,3.35524143]
[1752581887253,10.0,2981.4,2981.3,0.001]
[1752581887878,10.0,2981.4,2981.3,3.35524143]
[1752581888100,10.0,2981.4,2981.3,0.001]
[1752581888310,11.65472118,2981.4,2981.3,0.001]
[1752581888508,12.11642118,2981.4,2981.3,0.001]
[1752581890092,12.28547363,2981.4,2981.3,0.001]
[1752581890416,42.28547363,2981.4,2981.3,0.001]
[1752581890570,43.00780589,2981.4,2981.3,0.001]
[1752581891874,48.17080589,2981.4,2981.3,0.001]
[1752581892480,47.70910589,2981.4,2981.3,0.001]
[1752581892679,48.17080589,2981.4,2981.3,0.001]
[1752581892973,6.98392118,2981.4,2981.3,0.001]
[1752581893308,2.44986205,2981.4,2981.3,0.001]
[1752581893509,46.75724087,2981.4,2981.3,0.001]
[1752581893815,47.47917162,2981.4,2981.3,0.001]
[1752581896010,41.85447162,2981.4,2981.3,0.001]
[1752581896211,47.31493075,2981.4,2981.3,0.001]
[1752581897014,47.48580522,2981.4,2981.3,0.001]
[1752581897413,42.32080522,2981.4,2981.3,0.001]
[1752581897574,47.48580522,2981.4,2981.3,0.001]
[1752581899107,48.00605825,2981.4,2981.3,0.001]
[1752581899279,51.36018718,2981.4,2981.3,0.001]
[1752581899613,0.7586,2981.2,2980.8,0.001]
[1752581899916,10.0,2981.0,2980.8,0.001]
[1752581900232,35.3312,2981.1,2980.8,0.001]
[1752581900233,45.164,2980.9,2980.8,0.001]
[1752581900381,45.163,2980.9,2980.8,0.001]
[1752581900581,45.6247,2980.9,2980.8,0.001]
[1752581901531,45.6247,2980.9,2980.8,3.35580407]
[1752581901762,15.162,2980.9,2980.8,3.35580407]
[1752581902035,15.162,2980.9,2980.8,0.001]
[1752581902198,15.162,2980.9,2980.8,3.35580407]
[1752581902817,15.162,2980.9,2980.8,0.001]
[1752581903023,16.6782,2980.9,2980.8,0.001]
[1752581903219,11.9779,2980.9,2980.8,3.35580407]
[1752581903425,16.6782,2980.9,2980.8,3.35580407]
[1752581904726,54.52981353,2980.9,2980.8,0.001]
[1752581904921,0.8011,2980.7,2980.5,0.001]
[1752581905108,4.1297425,2980.5,2980.1,0.041]
[1752581905305,0.7746,2980.3,2980.1,0.041]
[1752581905538,45.16,2980.2,2980.1,0.041]
[1752581905936,46.45905303,2980.2,2980.1,0.041]
[1752581906136,10.0,2980.1,2979.8,0.001]
[1752581906337,10.0,2979.9,2979.8,0.001]
[1752581906506,40.0,2979.9,2979.8,0.001]
[1752581907300,2.295,2980.2,2980.0,3.35564322]
[1752581907536,45.175,2980.1,2980.0,3.35564322]
[1752581908020,10.0,2980.0,2979.9,3.35577561]
[1752581908344,40.0,2980.0,2979.9,3.35577561]
[1752581908641,40.0,2980.0,2979.9,3.3558173]
[1752581909143,0.52159046,2980.1,2980.0,3.35570469]
[1752581909439,15.174,2980.1,2980.0,3.35570469]
[1752581909844,45.174,2980.1,2980.0,3.35570469]
[1752581910640,10.0,2980.0,2979.9,3.35578813]
[1752581910845,40.0,2980.0,2979.8,0.001]
[1752581911043,0.25533115,2980.2,2979.8,0.001]
[1752581911044,45.172,2979.9,2979.8,0.001]
[1752581911349,15.173,2979.9,2979.8,3.35692992]
[1752581911752,15.173,2979.9,2979.8,0.001]
[1752581911953,15.173,2979.9,2979.8,3.35692992]
[1752581913010,10.0,2979.9,2979.8,3.35692992]
[1752581913210,15.171,2979.9,2979.8,3.35692992]
[1752581913445,10.0,2979.9,2979.8,3.35692992]
[1752581913646,15.171,2979.9,2979.8,4.15672992]
[1752581915455,0.1672,2980.1,2980.0,3.35570469]
[1752581915655,5.3382,2980.1,2980.0,3.35570469]
[1752581915824,15.3382,2980.1,2980.0,3.35570469]
[1752581916414,10.1672,2980.1,2980.0,3.35570469]
[1752581916610,15.3372,2980.1,2980.0,3.35570469]
[1752581917343,10.0,2980.0,2979.8,0.001]
[1752581917519,45.3372,2979.9,2979.8,3.35685939]
[1752581917712,15.3372,2979.9,2979.8,3.35685939]
[1752581917956,10.1672,2979.9,2979.8,3.35685939]
[1752581918116,15.3362,2979.9,2979.8,3.35685939]
[1752581918618,15.3352,2979.9,2979.8,3.35685939]
[1752581919957,15.3352,2979.9,2979.8,0.001]
[1752581920117,46.66697046,2979.9,2979.8,0.001]
[1752581920552,16.66697046,2979.9,2979.8,0.001]
[1752581920710,46.66697046,2979.9,2979.8,0.001]
[1752581920916,52.55704079,2979.9,2979.8,0.001]
[1752581921116,53.27883681,2979.9,2979.8,0.001]
[1752581921316,9.73404024,2979.2,2979.1,0.04]
[1752581921516,24.90204024,2979.2,2979.1,0.04]
[1752581921817,26.43576024,2979.2,2979.1,0.04]
[1752581922562,27.83576024,2979.2,2979.1,0.04]
[1752581922867,57.83576024,2979.2,2979.1,0.04]
[1752581923656,11.4,2979.2,2979.1,3.39671847]
[1752581923864,15.166,2979.2,2979.1,4.22241847]
[1752581924454,15.166,2979.2,2979.1,3.39671847]
[1752581925153,15.166,2979.2,2979.1,0.04]
[1752581925520,54.90004024,2979.2,2979.1,0.04]
[1752581925820,55.42029327,2979.2,2978.7,3.35710375]
[1752581926050,0.1672,2978.8,2978.7,3.35710375]
[1752581926243,15.3372,2978.8,2978.7,3.35710375]
[1752581926877,10.1672,2978.8,2978.7,3.35710375]
[1752581927088,15.3362,2978.8,2978.7,3.35710375]
[1752581927244,10.0,2978.8,2978.7,4.8543416]
[1752581927441,0.7955,2979.6,2979.4,3.35638047]
[1752581927773,35.169,2979.5,2979.4,3.35638047]
[1752581927959,45.89062025,2979.5,2979.4,3.35638047]
[1752581928584,40.72162025,2979.5,2979.4,3.35638047]
[1752581928760,5.169,2979.5,2979.4,3.35638047]
[1752581930695,0.1672,2979.6,2979.5,3.35626783]
[1752581930900,0.72168348,2979.9,2979.8,3.35592992]
[1752581931208,45.168,2979.9,2979.8,3.35592992]
[1752581931346,45.88968348,2979.9,2979.8,3.35592992]
[1752581931658,45.88968348,2979.9,2979.7,3.35603613]
[1752581931659,10.0,2979.8,2979.3,0.7655]
[1752581931844,5.172,2979.7,2979.6,3.35615518]
[1752581932200,5.89437739,2979.7,2979.6,3.35615518]
[1752581932361,5.172,2979.7,2979.6,3.35615518]
[1752581933387,10.1672,2979.8,2979.7,3.35604255]
[1752581933544,15.3392,2979.8,2979.7,3.35604255]
[1752581934190,16.06225131,2979.8,2979.7,3.35604255]
[1752581934557,17.66847644,2979.8,2979.6,3.35610482]
[1752581934882,10.0,2979.6,2979.5,3.356249]
[1752581935084,45.17,2979.6,2979.4,3.35634674]
[1752581935259,40.0,2979.5,2979.4,3.35634674]
[1752581935460,10.0,2979.5,2979.4,3.35634674]
[1752581936267,15.169,2979.5,2979.4,3.35634674]
[1752581936475,10.0,2979.5,2979.4,3.35634674]
[1752581936746,15.169,2979.5,2979.4,3.35634674]
[1752581938785,10.0,2979.5,2979.4,3.35634674]
[1752581938995,15.171,2979.5,2979.4,3.35634674]
[1752581939955,15.169,2979.5,2979.4,3.35634674]
[1752581940155,15.168,2979.5,2979.4,3.35634674]
[1752581940462,0.1672,2979.7,2979.6,3.35615518]
[1752581940661,0.1672,2979.7,2979.4,0.77118362]
[1752581940662,8.062,2980.1,2980.0,3.35570469]
[1752581940861,23.23,2980.1,2980.0,3.35570469]
[1752581941074,23.9531924,2980.1,2980.0,3.35570469]
[1752581941640,23.23,2980.1,2980.0,3.35570469]
[1752581943014,10.1692,2980.1,2980.0,3.35570469]
[1752581943293,0.002,2980.1,2980.0,4.95385594]
[1752581943464,0.002,2980.1,2980.0,4.98741298]
[1752581943791,5.168,2980.1,2980.0,4.95385594]
[1752581943957,5.168,2980.1,2980.0,4.28270469]
[1752581944691,5.168,2980.1,2980.0,3.52290469]
[1752581947576,0.002,2980.1,2980.0,3.52290469]
[1752581947915,5.164,2980.1,2980.0,4.31650469]
[1752581949611,5.164,2980.1,2980.0,3.52290469]
[1752581949810,6.6804,2980.1,2980.0,3.35570469]
[1752581950124,6.8476,2980.1,2980.0,3.35570469]
[1752581950323,6.8476,2980.1,2979.8,3.35582545]
[1752581950709,6.8476,2980.1,2979.8,3.35587119]
[1752581951228,10.8299,2980.0,2979.8,3.35587119]
[1752581951371,15.161,2979.9,2979.8,3.35587119]
[1752581951584,5.161,2979.9,2979.8,3.35592992]
[1752581952306,5.161,2979.9,2979.6,0.1672]
[1752581952470,10.0,2979.8,2979.6,3.35609975]
[1752581952811,15.16,2979.7,2979.6,3.35611206]
[1752581953027,0.8223,2979.5,2979.4,3.35634629]
[1752581953205,10.0,2979.4,2979.2,3.35653606]
[1752581953388,10.0,2979.2,2979.0,3.35675826]
[1752581953577,5.16,2979.1,2979.0,3.35675826]
[1752581955428,0.1672,2979.4,2979.3,3.35649313]
[1752581955635,15.3272,2979.4,2979.3,3.35649313]
[1752581955792,16.19237095,2979.4,2979.3,3.35649313]
[1752581956121,10.0,2979.3,2979.2,3.35653502]
[1752581956330,6.19237095,2979.4,2979.2,3.35653502]
[1752581957532,6.19237095,2979.4,2978.9,3.5241383]
[1752581957691,10.0,2979.3,2979.1,3.35671421]
[1752581957905,10.0,2979.1,2979.0,3.35677532]
[1752581958538,10.0,2979.1,2978.9,3.35689411]
[1752581958716,0.52139046,2979.3,2978.6,0.001]
[1752581958717,10.0,2978.9,2978.6,0.001]
[1752581958917,15.156,2978.8,2978.7,3.35706705]
[1752581959152,15.159,2978.8,2978.7,3.35706705]
[1752581960145,10.0,2978.8,2978.7,3.35706705]
[1752581960351,15.159,2978.8,2978.7,4.82960169]
[1752581961061,7.83,2979.2,2978.7,4.82960169]
[1752581961062,17.83,2979.2,2979.1,3.35671847]
[1752581961256,22.988,2979.2,2979.1,3.35671847]
[1752581964188,22.987,2979.2,2979.1,3.35671847]
[1752581964333,15.157,2979.2,2979.1,3.35671847]
[1752581964734,15.156,2979.2,2979.1,3.35671847]
[1752581964931,15.156,2979.2,2979.1,4.18571847]
[1752581965436,10.0,2979.2,2979.1,4.18571847]
[1752581965628,8.611,2979.8,2979.1,4.18571847]
[1752581965629,10.72251799,2979.7,2979.6,3.35615518]
[1752581965830,40.72251799,2979.7,2979.6,3.35615518]
[1752581966070,15.155,2979.7,2979.6,3.35615518]
[1752581966372,0.8011,2980.1,2980.0,3.35570469]
[1752581966373,10.8011,2980.1,2980.0,3.35570469]
[1752581966534,5.88346906,2980.1,2980.0,3.35570469]
[1752581966730,5.161,2980.1,2980.0,3.35570469]
[1752581967368,0.90251664,2980.5,2980.0,3.35570469]
[1752581967569,1.20607733,2980.6,2980.5,3.35514175]
[1752581967570,0.90251664,2980.6,2980.5,3.35514175]
[1752581967768,5.161,2980.6,2980.5,3.35514175]
[1752581968390,5.163,2980.6,2980.5,3.35514175]
[1752581968790,5.3302,2980.6,2980.5,3.35514175]
[1752581973420,17.77687166,2980.6,2980.5,3.35514175]
[1752581973631,16.1536,2980.6,2980.5,3.35514175]
[1752581975426,16.1536,2980.6,2979.8,0.784]
[1752581975602,15.9864,2980.6,2979.8,0.784]
[1752581975798,0.1672,2980.2,2980.1,3.35559209]
[1752581976005,15.3202,2980.2,2980.1,3.35559209]
[1752581978352,16.85222,2980.2,2980.1,3.35559209]
[1752581979558,10.81,2980.1,2979.7,0.1672]
[1752581979849,15.155,2980.0,2979.9,3.35580504]
[1752581980052,10.1672,2979.9,2979.8,3.35587023]
[1752581980214,5.66077046,2980.0,2979.6,3.35613334]
[1752581980413,5.155,2979.9,2979.7,3.35598313]
[1752581980837,40.0,2979.8,2979.7,3.35598313]
[1752581981542,15.154,2979.8,2979.7,3.35598313]
[1752581984671,0.1672,2980.0,2979.9,3.3558173]
[1752581984873,10.1672,2980.0,2979.9,3.3558173]
[1752581985173,0.1672,2980.5,2980.4,3.35525432]
[1752581985368,15.3212,2980.5,2980.4,3.35525432]
[1752581985572,16.04370951,2980.5,2980.4,3.35525432]
[1752581986666,15.3212,2980.5,2980.4,3.35525432]
[1752581986824,10.1672,2980.5,2980.4,3.35525432]
[1752581987024,15.3212,2980.5,2980.4,3.35525432]
[1752581988694,10.1672,2980.5,2980.4,3.35525432]
[1752581988993,15.3202,2980.5,2980.4,3.35525432]
[1752581990052,10.0,2980.5,2980.4,4.27651559]
[1752581990260,15.151,2980.5,2980.4,5.06261559]
[1752581990570,0.002,2980.6,2980.5,3.35514175]
[1752581990734,0.002,2980.6,2980.5,3.38869316]
[1752581991072,0.002,2980.6,2980.5,3.52234175]
[1752581991237,0.002,2980.6,2980.5,4.69965332]
[1752581993347,1e-08,2980.6,2980.5,4.73320473]
[1752581993550,0.04,2980.9,2980.8,3.35480407]
[1752581993551,1e-08,2980.9,2980.8,3.35480407]
[1752581993869,1e-08,2980.9,2980.8,9.33590407]
[1752581994039,1e-08,2980.9,2980.8,9.50310407]
[1752581994242,1e-08,2980.9,2980.8,10.78890541]
[1752581995852,1e-08,2980.9,2980.8,9.50410407]
[1752581996183,1e-08,2980.9,2980.8,3.52200407]
[1752581996354,1e-08,2980.9,2980.8,3.35480407]
[1752581996931,10.76240001,2980.9,2980.8,3.35480407]
[1752581997839,0.1672,2980.8,2980.7,3.35488117]
[1752581998048,5.3202,2980.8,2980.7,3.35488117]
[1752582004492,5.3142,2980.8,2980.7,3.35488117]
[1752582004696,15.147,2980.8,2980.7,3.35488117]
[1752582006305,5.147,2980.8,2980.7,3.35488117]
[1752582009384,1e-08,2980.9,2980.8,3.35480407]
[1752582009561,1e-08,2980.9,2980.8,4.45443547]
[1752582011016,1e-08,2980.9,2980.8,3.35480407]
[1752582011921,0.82550001,2980.9,2980.8,3.35480407]
[1752582012654,5.96750001,2980.9,2980.8,3.35480407]
[1752582013605,1e-08,2980.9,2980.8,3.35480407]
[1752582013804,15.14200001,2980.9,2980.8,3.35480407]
[1752582015130,10.00000001,2980.9,2980.8,3.35480407]
[1752582015338,1e-08,2980.9,2980.8,4.10823259]
[1752582015733,1e-08,2980.9,2980.8,3.35480407]
[1752582015920,10.00000001,2980.9,2980.8,3.35480407]
[1752582016365,10.82530001,2980.9,2980.8,3.35480407]
[1752582018226,11.54901691,2980.9,2980.8,3.35480407]
[1752582018641,12.94901691,2980.9,2980.8,3.35480407]
[1752582019455,12.12371691,2980.9,2980.8,3.35480407]
[1752582020336,11.40000001,2980.9,2980.8,3.35480407]
[1752582020639,12.12401379,2980.9,2980.8,3.35480407]
[1752582021160,10.72401379,2980.9,2980.8,3.35480407]
[1752582022583,12.41500139,2980.9,2980.8,3.35480407]
[1752582022735,12.41500139,2980.9,2980.2,0.1672]
[1752582022736,0.1672,2980.8,2980.7,3.35491663]
[1752582022934,10.1672,2980.7,2980.6,3.3549682]
[1752582023380,0.833,2980.6,2980.5,3.3550527]
[1752582023556,16.42628908,2980.6,2980.5,3.3550527]
[1752582024069,10.0,2980.5,2980.4,3.35519458]
[1752582024257,10.1672,2980.5,2980.4,3.35519458]
[1752582024840,10.1672,2980.5,2980.0,0.001]
[1752582024841,0.8914603,2980.5,2980.0,0.001]
[1752582025079,10.0,2980.2,2980.0,0.001]
[1752582025241,15.142,2980.1,2980.0,0.001]
[1752582025585,15.142,2980.1,2980.0,3.35670469]
[1752582025969,15.142,2980.1,2980.0,0.001]
[1752582026136,15.142,2980.1,2980.0,3.35670469]
[1752582027149,15.86626797,2980.1,2980.0,3.35670469]
[1752582027355,16.31755705,2980.1,2980.0,3.35670469]
[1752582028307,46.31755705,2980.1,2980.0,3.35670469]
[1752582028481,46.31755705,2980.1,2980.0,0.001]
[1752582028869,46.31755705,2980.1,2980.0,3.35670469]
[1752582029280,45.59328908,2980.1,2980.0,3.35670469]
[1752582030011,15.59328908,2980.1,2980.0,3.35670469]
[1752582030218,15.142,2980.1,2980.0,3.35670469]
[1752582030678,15.138,2980.1,2980.0,3.35670469]
[1752582031281,45.138,2980.1,2980.0,0.001]
[1752582031474,45.8966,2980.1,2980.0,0.001]
[1752582031867,46.61955187,2980.1,2980.0,0.001]
[1752582032777,49.97514396,2980.1,2980.0,0.001]
[1752582034821,50.43541163,2980.1,2980.0,0.001]
[1752582035183,58.26541163,2980.1,2980.0,0.001]
[1752582035383,28.26541163,2980.1,2980.0,0.001]
[1752582035805,61.18192827,2980.1,2980.0,0.001]
[1752582036212,60.27941163,2980.1,2980.0,0.001]
[1752582036816,0.818,2979.6,2979.2,3.3565624]
[1752582037033,10.0,2979.4,2979.2,3.3565624]
[1752582037343,10.0,2979.2,2979.1,3.35671847]
[1752582037702,10.0,2979.2,2979.0,3.35779744]
[1752582037928,15.9331,2979.1,2979.0,0.001]
[1752582038095,53.7631,2979.1,2979.0,0.001]
[1752582038453,53.7631,2979.1,2978.9,0.001]
[1752582038454,10.0,2979.0,2978.9,0.001]
[1752582038634,40.0,2979.0,2978.7,3.35711402]
[1752582038836,35.138,2978.9,2978.7,3.35711402]
[1752582038988,15.138,2978.9,2978.8,3.35705653]
[1752582039183,10.0,2978.9,2978.8,3.35705653]
[1752582039388,15.138,2978.9,2978.8,4.11295653]
[1752582040244,15.138,2978.9,2978.8,4.11395653]
[1752582040390,15.138,2978.9,2978.8,3.35805653]
[1752582041733,15.9333,2978.9,2978.8,3.35805653]
[1752582042290,15.9333,2978.9,2978.8,0.001]
[1752582042492,15.9333,2978.9,2978.8,3.35805653]
[1752582042790,15.9333,2978.9,2978.8,0.001]
[1752582043012,15.9333,2978.9,2978.8,3.35805653]
[1752582043216,15.9333,2978.9,2978.8,0.001]
[1752582043417,45.9333,2978.9,2978.8,0.001]
[1752582044495,45.9333,2978.9,2978.8,3.35805653]
[1752582044990,45.138,2978.9,2978.8,3.35805653]
[1752582046229,40.0,2978.9,2978.8,3.35805653]
[1752582046429,45.139,2978.9,2978.8,3.35805653]
[1752582046640,10.0,2978.9,2978.8,3.35805653]
[1752582046811,15.139,2978.9,2978.8,3.35805653]
[1752582050445,10.0,2978.9,2978.8,3.35805653]
[1752582050623,15.139,2978.9,2978.8,4.15795653]
[1752582051207,10.0,2978.9,2978.8,4.15795653]
[1752582051407,15.139,2978.9,2978.8,4.15795653]
[1752582053549,10.0,2978.9,2978.8,4.15795653]
[1752582053755,15.139,2978.9,2978.8,4.15795653]
[1752582054167,10.0,2978.9,2978.8,4.15795653]
[1752582054372,15.139,2978.9,2978.8,4.15795653]
[1752582055655,15.139,2978.9,2978.8,3.35805653]
[1752582056612,15.139,2978.9,2978.8,0.001]
[1752582056824,15.139,2978.9,2978.8,3.35805653]
[1752582057557,15.139,2978.9,2978.8,0.001]
[1752582059429,45.141,2978.9,2978.8,0.001]
[1752582059871,10.0,2978.8,2978.6,0.001]
[1752582060171,25.63854024,2978.7,2978.6,0.001]
[1752582060323,10.0,2978.7,2978.6,0.001]
[1752582060518,15.139,2978.7,2978.6,0.001]
[1752582061188,15.139,2978.7,2978.6,3.35828194]
[1752582061326,15.139,2978.7,2978.6,0.001]
[1752582061522,15.139,2978.7,2978.6,3.35828194]
[1752582061777,15.3062,2978.7,2978.6,3.35828194]
[1752582062178,10.1672,2978.7,2978.6,0.001]
[1752582062381,56.05716024,2978.7,2978.6,0.001]
[1752582062678,56.78128294,2978.7,2978.6,0.001]
[1752582063477,17.0472427,2978.7,2978.6,0.001]
[1752582064199,47.0472427,2978.7,2978.6,0.001]
[1752582065083,56.78128294,2978.7,2978.6,0.001]
[1752582066981,57.68164999,2978.7,2978.6,0.001]
[1752582067284,56.78128294,2978.7,2978.6,0.001]
[1752582067447,57.68682615,2978.7,2978.6,0.001]
[1752582068212,58.50522615,2978.7,2978.6,0.001]
[1752582068397,60.95685217,2978.7,2978.6,0.001]
[1752582068555,61.86218366,2978.7,2978.6,0.001]
[1752582068747,58.50501443,2978.7,2978.6,0.001]
[1752582069080,57.59968294,2978.7,2978.6,0.001]
[1752582069694,10.8913227,2978.7,2978.6,0.001]
[1752582069841,15.3062,2978.7,2978.6,3.35828194]
[1752582070048,16.0303227,2978.7,2978.4,3.35749035]
[1752582070275,0.7241227,2978.6,2978.4,3.35749035]
[1752582070479,15.139,2978.5,2978.4,3.35749035]
[1752582070680,10.7241227,2978.5,2978.4,3.35749035]
[1752582070894,15.139,2978.5,2978.4,3.35749035]
[1752582071262,15.86309503,2978.5,2978.4,3.35749035]
[1752582073666,15.139,2978.5,2978.4,3.35749035]
[1752582074190,15.8629936,2978.5,2978.4,3.35749035]
[1752582075697,15.8629936,2978.5,2978.4,3.35750738]
[1752582075993,16.73233285,2978.2,2978.1,0.04]
[1752582076191,10.0,2977.9,2976.9,3.35919916]
[1752582076354,3.3746,2978.0,2977.5,3.35847098]
[1752582076355,10.0,2977.7,2977.5,3.35847098]
[1752582076555,45.149,2977.6,2977.5,3.35847098]
[1752582076774,15.87295321,2977.6,2977.5,3.27447593]
[1752582077770,10.72395321,2977.6,2977.5,3.27447593]
[1752582077973,15.148,2977.6,2977.5,3.27447593]
[1752582079089,0.8256,2978.3,2978.2,3.35773285]
[1752582079277,7.83,2978.5,2978.4,3.35750738]
[1752582079476,42.982,2978.5,2978.3,3.35762011]
[1752582079708,30.72272299,2978.4,2978.3,3.35762011]
[1752582080015,35.87472299,2978.4,2978.3,3.35762011]
[1752582080219,0.72272299,2978.4,2978.3,3.35762011]
[1752582080423,2.8396,2978.2,2977.0,0.5216]
[1752582080606,10.0,2977.9,2976.9,5.151]
[1752582080812,10.0,2977.7,2977.6,3.35840945]
[1752582080978,15.179,2977.7,2977.6,3.35840945]
[1752582081488,15.9313,2977.7,2977.5,0.001]
[1752582081705,15.9313,2977.7,2977.1,3.35892539]
[1752582081706,10.0,2977.5,2977.1,3.35892539]
[1752582081906,19.73404024,2977.2,2977.1,3.35892539]
[1752582082108,24.91504024,2977.2,2977.1,3.35892539]
[1752582083220,10.0,2977.1,2977.0,3.35898319]
[1752582085276,10.8093,2977.1,2977.0,3.35908632]
[1752582085478,10.8093,2977.1,2976.7,3.35938758]
[1752582085479,13.1471323,2977.1,2976.7,3.35938758]
[1752582085679,10.0,2976.9,2976.7,3.35938758]
[1752582085916,14.91504024,2976.8,2976.7,3.35938758]